bitfinex-derivatives/quotes_BTCF0:USTF0_20240829
["timestamp","ask_amount","ask_price","bid_price","bid_amount"]
[1724939350090,0.16380221,60493.0,60491.0,0.3608]
[1724939350091,0.16380221,60495.0,60494.0,0.082623]
[1724939350292,0.18041851,60500.0,60499.0,0.082617]
[1724939350491,0.5,60504.0,60503.0,0.082611]
[1724939350692,0.00024785,60506.0,60505.0,0.082608]
[1724939350896,0.16380221,60514.0,60505.0,0.082608]
[1724939350897,0.0038,60521.0,60509.0,0.082603]
[1724939351111,0.0506939,60522.0,60521.0,0.082587]
[1724939351292,0.16380221,60528.0,60521.0,0.6]
[1724939351597,0.5,60533.0,60527.0,0.443378]
[1724939351798,0.04043906,60532.0,60527.0,0.3608]
[1724939352095,0.04043906,60531.0,60527.0,0.3608]
[1724939352296,0.04043906,60530.0,60527.0,0.3608]
[1724939352503,0.5,60535.0,60527.0,0.3608]
[1724939352902,0.00024785,60536.0,60532.0,0.3608]
[1724939353094,0.00024785,60536.0,60535.0,0.082567]
[1724939353290,1e-08,60536.0,60535.0,1.072567]
[1724939353498,1e-08,60536.0,60535.0,1.568127]
[1724939353994,1e-08,60536.0,60535.0,0.968127]
[1724939354192,1e-08,60536.0,60535.0,1.568127]
[1724939354397,1e-08,60536.0,60535.0,1.728207]
[1724939354794,0.00500001,60536.0,60535.0,1.728207]
[1724939355800,0.0038,60550.0,60535.0,1.66824199]
[1724939356000,0.05067185,60554.0,60549.0,0.3608]
[1724939356199,0.04042478,60553.0,60549.0,0.3608]
[1724939356390,0.04042478,60552.0,60549.0,0.3608]
[1724939356596,0.04042478,60551.0,60549.0,0.3608]
[1724939356796,0.582538,60557.0,60549.0,0.3608]
[1724939357009,0.04067163,60556.0,60549.0,0.3608]
[1724939357303,0.014,60553.0,60549.0,0.3608]
[1724939357502,0.09109227,60552.0,60549.0,0.3608]
[1724939357807,0.09109227,60551.0,60549.0,0.3608]
[1724939358010,0.09109227,60550.0,60549.0,0.3608]
[1724939358508,0.5,60549.0,60544.0,0.00024785]
[1724939358702,0.082552,60547.0,60544.0,0.00024785]
[1724939358897,0.082554,60545.0,60544.0,0.00024785]
[1724939359102,0.17364627,60545.0,60544.0,0.00024785]
[1724939359301,0.09109227,60545.0,60544.0,0.00020785]
[1724939359498,0.09109227,60545.0,60544.0,0.08276285]
[1724939360296,0.27098375,60545.0,60544.0,0.08276285]
[1724939360608,0.09109227,60545.0,60544.0,0.08276285]
[1724939360997,0.15029798,60545.0,60544.0,0.08276285]
[1724939361301,0.2709029,60545.0,60544.0,1.25238285]
[1724939361499,0.2839029,60545.0,60544.0,1.25238285]
[1724939361702,0.10409227,60545.0,60544.0,1.25238285]
[1724939361912,0.10408496,60545.0,60544.0,0.65238285]
[1724939362099,0.10408496,60545.0,60544.0,1.25238285]
[1724939362100,0.28389185,60545.0,60544.0,1.25238285]
[1724939362599,0.28389185,60545.0,60544.0,1.33493785]
[1724939362814,0.28389185,60545.0,60544.0,1.25238285]
[1724939362815,0.10408496,60545.0,60544.0,1.25238285]
[1724939362998,0.00762605,60545.0,60544.0,1.33493785]
[1724939363201,0.16329563,60552.0,60550.0,0.082547]
[1724939363504,0.04729302,60554.0,60553.0,0.247629]
[1724939363704,8.4e-07,60556.0,60555.0,0.24762]
[1724939363909,0.09304713,60561.0,60555.0,0.24762]
[1724939363910,9.6e-07,60561.0,60560.0,0.165066]
[1724939364108,0.0038,60578.0,60561.0,0.082531]
[1724939364310,0.0038,60586.0,60577.0,0.39]
[1724939364509,0.3608,60589.0,60576.0,0.443311]
[1724939364510,0.082501,60584.0,60576.0,0.443311]
[1724939364714,0.00108,60588.0,60576.0,0.3608]
[1724939365212,0.00108,60588.0,60577.0,0.08251]
[1724939365400,0.3608,60589.0,60577.0,0.08251]
[1724939365597,0.3608,60589.0,60576.0,0.38272671]
[1724939366004,0.082502,60583.0,60576.0,0.3608]
[1724939366206,0.082504,60582.0,60576.0,0.3608]
[1724939366413,0.082505,60581.0,60576.0,0.3608]
[1724939366604,0.082506,60580.0,60576.0,0.3608]
[1724939366807,0.3608,60581.0,60576.0,0.3608]
[1724939367017,0.08251,60577.0,60576.0,0.3608]
[1724939367408,0.082513,60575.0,60574.0,0.00024764]
[1724939368807,1.189753,60575.0,60574.0,0.00024764]
[1724939369013,0.094513,60575.0,60574.0,0.00024764]
[1724939369209,1.172266,60575.0,60574.0,0.00024764]
[1724939369409,1.772266,60575.0,60574.0,0.00024764]
[1724939369608,0.082527,60565.0,60564.0,0.3608]
[1724939369816,0.082527,60565.0,60559.0,0.15996]
[1724939369817,0.082532,60562.0,60559.0,0.15996]
[1724939370517,0.082525,60567.0,60560.0,0.3608]
[1724939370718,0.082525,60566.0,60565.0,0.3608]
[1724939371018,0.50024764,60570.0,60560.0,0.3608]
[1724939371019,0.01,60562.0,60560.0,0.3608]
[1724939371408,0.01,60562.0,60561.0,0.082532]
[1724939371609,0.001,60562.0,60561.0,0.082532]
[1724939372111,0.001,60562.0,60560.0,0.443333]
[1724939372309,0.083532,60562.0,60560.0,0.3608]
[1724939372705,0.082532,60561.0,60560.0,0.3608]
[1724939373819,0.165072,60558.0,60557.0,0.00024764]
[1724939374022,0.443336,60558.0,60557.0,0.00024764]
[1724939374713,0.082536,60558.0,60557.0,0.36104764]
[1724939375418,0.094536,60558.0,60557.0,0.36104764]
[1724939375810,0.012,60558.0,60557.0,0.44358464]
[1724939377116,0.082532,60561.0,60558.0,0.082535]
[1724939377311,0.082532,60561.0,60559.0,0.082535]
[1724939378214,0.082527,60565.0,60557.0,0.36104764]
[1724939378424,0.082533,60561.0,60560.0,0.082533]
[1724939378717,0.004,60561.0,60560.0,0.082533]
[1724939380015,0.16253392,60564.0,60563.0,0.082529]
[1724939380210,0.17894813,60567.0,60566.0,0.082525]
[1724939380412,0.17894813,60567.0,60566.0,0.443325]
[1724939380617,0.00024764,60570.0,60569.0,0.082521]
[1724939381319,0.00024764,60570.0,60569.0,0.080521]
[1724939382122,0.00024764,60570.0,60569.0,0.242161]
[1724939382421,0.082522,60568.0,60566.0,0.443324]
[1724939382611,0.082522,60568.0,60567.0,0.244164]
[1724939382806,0.00024764,60570.0,60569.0,0.082521]
[1724939383209,0.082522,60568.0,60566.0,0.3608]
[1724939383407,0.00024764,60570.0,60569.0,0.082521]
[1724939383615,0.08276764,60570.0,60569.0,0.082521]
[1724939384017,0.082522,60568.0,60567.0,0.16164]
[1724939384217,0.082524,60567.0,60566.0,0.3608]
[1724939384415,0.082524,60567.0,60566.0,0.443325]
[1724939385018,0.01,60568.0,60567.0,0.082524]
[1724939385217,0.01324764,60570.0,60568.0,0.082522]
[1724939385817,0.082521,60569.0,60568.0,0.082522]
[1724939386220,0.082524,60567.0,60566.0,0.3828394]
[1724939386524,0.082528,60565.0,60564.0,0.082528]
[1724939386725,0.082531,60562.0,60561.0,0.3608]
[1724939387521,0.082531,60562.0,60561.0,0.443332]
[1724939387719,0.156027,60565.0,60563.0,0.082528]
[1724939388027,0.156027,60565.0,60561.0,0.3608]
[1724939388028,0.082531,60562.0,60561.0,0.3608]
[1724939388212,0.14218579,60562.0,60561.0,0.38321371]
[1724939388825,0.13818579,60562.0,60561.0,0.46574571]
[1724939389416,0.13818579,60562.0,60561.0,0.38321371]
[1724939389933,0.13818899,60562.0,60561.0,0.38321371]
[1724939390325,0.05565799,60562.0,60561.0,0.38321371]
[1724939390534,0.05965799,60562.0,60561.0,0.46574571]
[1724939391024,0.05065799,60567.0,60566.0,0.082525]
[1724939391329,0.13318199,60567.0,60566.0,0.082525]
[1724939391633,0.05065799,60567.0,60561.0,0.38321371]
[1724939391930,0.091531,60562.0,60561.0,0.38321371]
[1724939392230,0.14218899,60562.0,60561.0,0.38321371]
[1724939392922,0.14218899,60562.0,60561.0,0.46574571]
[1724939392923,0.05965799,60562.0,60561.0,0.46574571]
[1724939393730,0.13318899,60562.0,60561.0,0.38321371]
[1724939394425,0.13918899,60562.0,60561.0,0.38321371]
[1724939394625,0.13918862,60562.0,60561.0,0.46574571]
[1724939395031,0.14318862,60562.0,60561.0,0.46574571]
[1724939395537,0.29787712,60566.0,60565.0,0.082527]
[1724939395731,0.13318362,60566.0,60565.0,0.082527]
[1724939396335,0.082526,60566.0,60565.0,0.082527]
[1724939398029,0.595526,60566.0,60565.0,0.082527]
[1724939398336,0.095526,60566.0,60565.0,0.082527]
[1724939398536,0.082526,60566.0,60565.0,0.082527]
[1724939398738,0.096526,60566.0,60565.0,0.082527]
[1724939399031,0.596526,60566.0,60565.0,0.082527]
[1724939399437,0.096526,60566.0,60565.0,0.082527]
[1724939399631,0.096526,60566.0,60561.0,2.91343127]
[1724939399632,0.082531,60562.0,60561.0,2.53021756]
[1724939399834,0.165062,60562.0,60561.0,2.52933756]
[1724939400036,1.725753,60562.0,60561.0,2.52933756]
[1724939400238,2.45757625,60562.0,60561.0,2.52933756]
[1724939400535,2.41361793,60562.0,60561.0,1.94963757]
[1724939400939,2.4589746,60562.0,60561.0,1.94963757]
[1724939401530,0.70605452,60562.0,60561.0,2.03216957]
[1724939401726,0.5616604,60562.0,60561.0,2.11470157]
[1724939401932,0.0616604,60562.0,60561.0,2.11470157]
[1724939402131,0.011,60562.0,60561.0,2.11470157]
[1724939402546,0.011,60562.0,60561.0,2.05410408]
[1724939403135,0.011,60562.0,60561.0,2.13663608]
[1724939403328,0.011,60562.0,60561.0,3.02452808]
[1724939403845,0.011,60562.0,60561.0,2.94199608]
[1724939404040,0.011,60562.0,60561.0,2.05410408]
[1724939404241,0.093531,60562.0,60561.0,1.97157208]
[1724939404431,0.093531,60562.0,60561.0,1.94963757]
[1724939404432,1.188891,60562.0,60561.0,1.94963757]
[1724939404637,1.42072751,60562.0,60561.0,1.94963757]
[1724939404852,2.07758133,60562.0,60561.0,1.94963757]
[1724939405136,1.87305024,60562.0,60561.0,1.94963757]
[1724939405345,1.27305024,60562.0,60561.0,1.94963757]
[1724939405648,0.21577955,60562.0,60561.0,1.94963757]
[1724939405949,0.18115792,60567.0,60566.0,0.082525]
[1724939406245,0.00120001,60568.0,60567.0,0.082524]
[1724939406442,0.16467229,60569.0,60566.0,0.3608]
[1724939406745,0.16467229,60569.0,60568.0,0.082522]
[1724939407237,0.00024764,60570.0,60569.0,0.082521]
[1724939407238,0.36104764,60570.0,60569.0,0.082521]
[1724939407442,0.36104764,60570.0,60561.0,1.94963757]
[1724939407443,0.082521,60569.0,60561.0,1.94963757]
[1724939407633,0.082531,60562.0,60561.0,1.94963757]
[1724939407834,1.61754397,60562.0,60561.0,1.94963757]
[1724939408044,1.84179275,60562.0,60561.0,1.79287296]
[1724939408345,2.34179275,60562.0,60561.0,1.58700796]
[1724939408537,2.40854296,60562.0,60561.0,1.50115896]
[1724939408736,2.34079275,60562.0,60561.0,1.28350896]
[1724939408935,2.40854438,60562.0,60561.0,0.52316331]
[1724939409139,2.41454438,60562.0,60561.0,0.40819831]
[1724939409345,2.34679275,60562.0,60561.0,0.40819831]
[1724939409534,1.25947826,60562.0,60561.0,0.40819831]
[1724939409840,1.11119975,60562.0,60561.0,0.49073031]
[1724939410046,2.23706175,60562.0,60561.0,0.40819831]
[1724939410447,2.70959275,60562.0,60561.0,0.32229631]
[1724939410748,2.77733077,60562.0,60561.0,0.13806731]
[1724939411142,0.247608,60558.0,60557.0,9.5e-07]
[1724939411450,0.35744775,60558.0,60557.0,9.5e-07]
[1724939411640,1.45284775,60558.0,60557.0,9.5e-07]
[1724939411941,1.95284775,60558.0,60557.0,9.5e-07]
[1724939412143,0.082561,60540.0,60539.0,0.0038]
[1724939412342,0.082567,60536.0,60531.0,0.082572]
[1724939412549,0.082567,60536.0,60526.0,0.1537]
[1724939412550,0.3608,60534.0,60532.0,0.082572]
[1724939412755,0.10983975,60533.0,60532.0,0.082572]
[1724939413044,1.04525297,60533.0,60520.0,0.3608]
[1724939413344,1.04525297,60533.0,60520.0,0.43764764]
[1724939413345,0.3608,60528.0,60520.0,0.43764764]
[1724939413548,0.443387,60521.0,60520.0,0.00024764]
[1724939414246,0.8608,60521.0,60520.0,0.00024764]
[1724939414634,0.53435297,60521.0,60520.0,0.00024764]
[1724939414839,1.532067,60521.0,60520.0,0.00024764]
[1724939415136,1.67384878,60521.0,60520.0,0.00024764]
[1724939415437,2.17984878,60521.0,60520.0,0.00124764]
[1724939415643,2.24765162,60521.0,60520.0,0.00124764]
[1724939415847,2.17984878,60521.0,60520.0,0.00124764]
[1724939416048,2.19524941,60521.0,60520.0,0.00100064]
[1724939416240,2.03006741,60521.0,60503.0,0.0038]
[1724939416446,2.03006741,60521.0,60495.0,0.0038]
[1724939416447,0.7216,60504.0,60495.0,0.0038]
[1724939416635,0.7216,60504.0,60492.0,0.082633]
[1724939416636,0.3608,60496.0,60492.0,0.082633]
[1724939416943,0.5,60495.0,60492.0,0.082633]
[1724939417142,0.8608,60495.0,60488.0,0.08264]
[1724939417347,0.3608,60490.0,60488.0,0.08264]
[1724939417750,0.3608,60490.0,60489.0,0.082638]
[1724939418140,0.3608,60490.0,60487.0,0.00024788]
[1724939418543,0.16528,60488.0,60487.0,0.00024788]
[1724939418746,0.5786,60488.0,60487.0,0.00024788]
[1724939419051,1.26124,60488.0,60487.0,0.00024788]
[1724939419242,1.6786,60488.0,60487.0,0.00024788]
[1724939419439,1.6876,60488.0,60487.0,0.00024788]
[1724939419746,1.77024,60488.0,60487.0,0.00024788]
[1724939421561,1.77024,60488.0,60470.0,0.0038]
[1724939421562,0.165326,60471.0,60470.0,0.0038]
[1724939421850,0.165326,60471.0,60458.0,0.2331]
[1724939421851,1.1116,60471.0,60458.0,0.2331]
[1724939422064,0.3608,60459.0,60458.0,0.2331]
[1724939422638,0.3608,60464.0,60458.0,0.2331]
[1724939422949,0.3608,60464.0,60463.0,0.082674]
[1724939423358,0.0002481,60465.0,60464.0,0.082673]
[1724939424150,0.3610481,60465.0,60464.0,0.082673]
[1724939424353,0.0002481,60465.0,60464.0,0.082673]
[1724939424650,0.0002481,60465.0,60464.0,0.443473]
[1724939424849,0.0012481,60465.0,60464.0,0.082673]
[1724939425452,0.5,60470.0,60464.0,0.443473]
[1724939425749,0.0038,60484.0,60483.0,0.082647]
[1724939425953,0.5,60484.0,60477.0,0.3608]
[1724939426144,0.5,60484.0,60483.0,0.443447]
[1724939426345,0.082641,60488.0,60486.0,0.082642]
[1724939426748,0.5,60487.0,60486.0,0.082642]
[1724939427446,0.5002481,60490.0,60489.0,0.082638]
[1724939427748,0.0002481,60490.0,60489.0,0.082638]
[1724939429055,0.0002481,60490.0,60486.0,0.1602]
[1724939429256,0.7216,60488.0,60477.0,0.0002481]
[1724939429560,0.443454,60478.0,60477.0,0.0002481]
[1724939429754,0.804254,60478.0,60477.0,0.0002481]
[1724939430348,1.304254,60478.0,60477.0,0.0002481]
[1724939430850,0.5,60478.0,60477.0,0.0002481]
[1724939431046,0.08265,60481.0,60478.0,0.082653]
[1724939431247,0.58265,60481.0,60477.0,0.0002481]
[1724939431449,0.5,60480.0,60477.0,0.0002481]
[1724939431649,0.5,60485.0,60477.0,0.0002481]
[1724939431848,0.5,60485.0,60481.0,0.082649]
[1724939432149,0.08265,60481.0,60477.0,0.4437031]
[1724939432552,0.08265,60481.0,60478.0,0.082653]
[1724939432553,0.09065,60481.0,60478.0,0.082653]
[1724939432751,0.09065,60481.0,60477.0,0.3610481]
[1724939433251,0.082651,60480.0,60479.0,0.082652]
[1724939434050,0.008,60481.0,60480.0,0.082651]
[1724939434446,0.3608,60499.0,60489.0,0.082638]
[1724939434652,0.08263,60495.0,60489.0,0.082638]
[1724939434951,0.3608,60499.0,60495.0,0.08263]
[1724939434952,0.5,60496.0,60495.0,0.08263]
[1724939435163,0.5,60498.0,60492.0,0.3608]
[1724939435659,0.082626,60498.0,60497.0,0.082628]
[1724939435856,0.08263,60496.0,60494.0,0.082631]
[1724939436054,0.08263,60496.0,60492.0,0.3608]
[1724939436253,0.5,60498.0,60497.0,0.082628]
[1724939436452,0.0002481,60501.0,60500.0,0.082623]
[1724939436958,0.5002481,60501.0,60495.0,0.082629]
[1724939437159,0.082628,60497.0,60495.0,0.082629]
[1724939437357,0.082637,60490.0,60489.0,0.0002481]
[1724939437556,0.165274,60490.0,60489.0,0.0002481]
[1724939437762,0.082637,60490.0,60489.0,0.0002481]
[1724939438266,0.582637,60490.0,60489.0,0.0002481]
[1724939438559,0.082637,60490.0,60489.0,0.0002481]
[1724939438755,0.165274,60490.0,60489.0,0.0002481]
[1724939438947,0.082637,60490.0,60489.0,0.0002481]
[1724939439151,0.596637,60490.0,60489.0,0.0012481]
[1724939439662,0.110637,60490.0,60489.0,0.0022481]
[1724939440260,0.028,60490.0,60489.0,0.0848861]
[1724939440457,0.028,60490.0,60489.0,0.4456861]
[1724939441058,0.3608,60498.0,60497.0,0.082628]
[1724939441360,0.00116,60503.0,60490.0,0.082637]
[1724939441656,0.082628,60497.0,60496.0,0.082628]
[1724939441863,0.0828711,60501.0,60498.0,0.082625]
[1724939442059,0.0002481,60501.0,60498.0,0.082625]
[1724939442255,0.0002481,60501.0,60494.0,0.3608]
[1724939442256,0.082629,60496.0,60494.0,0.3608]
[1724939442451,0.081629,60496.0,60495.0,0.08263]
[1724939442657,0.006,60498.0,60497.0,0.082628]
[1724939442851,0.006,60498.0,60494.0,0.3608]
[1724939443158,0.082637,60490.0,60489.0,0.0011681]
[1724939443364,0.443437,60490.0,60489.0,0.0002481]
[1724939443867,0.943437,60490.0,60489.0,0.0002481]
[1724939444252,0.443437,60490.0,60489.0,0.0002481]
[1724939444461,0.443437,60490.0,60489.0,0.0828861]
[1724939444657,0.443437,60490.0,60489.0,0.0002481]
[1724939444965,0.442437,60490.0,60489.0,0.0002481]
[1724939445256,0.441437,60490.0,60489.0,0.0002481]
[1724939445658,0.524074,60490.0,60489.0,0.0002481]
[1724939445858,1.020034,60490.0,60489.0,0.0012481]
[1724939446065,1.024074,60490.0,60489.0,0.0012481]
[1724939446454,0.941437,60490.0,60489.0,0.0012481]
[1724939446658,0.441437,60490.0,60489.0,0.0012481]
[1724939446965,0.445437,60490.0,60489.0,0.0022481]
[1724939447354,0.528074,60490.0,60489.0,0.0022481]
[1724939447752,0.945437,60490.0,60489.0,0.0022481]
[1724939448164,1.028074,60490.0,60489.0,0.0022481]
[1724939448364,0.945437,60490.0,60489.0,0.0022481]
[1724939448556,0.945437,60490.0,60489.0,0.0012481]
[1724939448766,0.946437,60490.0,60489.0,0.0022481]
[1724939449259,0.946437,60490.0,60489.0,0.0848861]
[1724939449457,0.945437,60490.0,60489.0,0.0838861]
[1724939449654,0.942437,60490.0,60489.0,0.0838861]
[1724939449863,0.946437,60490.0,60489.0,0.0022481]
[1724939450365,0.947437,60490.0,60489.0,0.0022481]
[1724939451563,0.586637,60490.0,60489.0,0.0848861]
[1724939451771,0.006,60490.0,60489.0,0.4456861]
[1724939452156,0.006,60490.0,60489.0,0.4446861]
[1724939452157,0.004,60490.0,60489.0,0.4446861]
[1724939452354,0.006,60490.0,60489.0,0.4456861]
[1724939452558,0.006,60490.0,60489.0,1.0242841]
[1724939453161,0.006,60490.0,60489.0,0.5283241]
[1724939453363,0.006,60490.0,60489.0,1.0242841]
[1724939453571,0.006,60490.0,60489.0,0.5283241]
[1724939455569,0.006,60490.0,60489.0,0.4456861]
[1724939458866,0.006,60490.0,60489.0,0.5273241]
[1724939459264,0.006,60490.0,60489.0,0.4446861]
[1724939459463,0.007,60490.0,60489.0,0.4446861]
[1724939460064,0.082631,60495.0,60494.0,0.082632]
[1724939460270,0.58374501,60499.0,60489.0,0.3620481]
[1724939460570,0.08263,60495.0,60494.0,0.44343]
[1724939460871,0.08263,60495.0,60489.0,0.0002481]
[1724939460872,0.165274,60490.0,60489.0,0.0002481]
[1724939461061,0.082639,60489.0,60476.0,0.3608]
[1724939461263,0.08265,60481.0,60476.0,0.3608]
[1724939461564,0.3608,60484.0,60476.0,0.3608]
[1724939461767,0.58264,60488.0,60471.0,0.1602]
[1724939461768,0.08265,60481.0,60480.0,0.082649]
[1724939461968,0.08265,60481.0,60477.0,0.3608]
[1724939461969,0.082644,60485.0,60477.0,0.3608]
[1724939462269,0.0002481,60487.0,60486.0,0.165286]
[1724939462469,0.3608,60503.0,60486.0,0.165286]
[1724939462470,0.5,60504.0,60493.0,0.082633]
[1724939462664,0.082617,60505.0,60504.0,0.082616]
[1724939462863,0.5754,60508.0,60501.0,0.3608]
[1724939462864,0.5,60510.0,60501.0,0.3608]
[1724939463063,0.5,60510.0,60509.0,0.082611]
[1724939463264,0.00108,60511.0,60510.0,0.08261]
[1724939463570,0.00024789,60517.0,60516.0,0.082602]
[1724939463769,0.00024789,60517.0,60516.0,0.443402]
[1724939463967,0.00024789,60517.0,60516.0,0.082602]
[1724939464269,0.85676789,60517.0,60502.0,0.4432]
[1724939464577,0.443417,60505.0,60501.0,0.001]
[1724939464871,0.08264,60488.0,60470.0,0.3608]
[1724939465071,0.08264,60488.0,60464.0,0.3608]
[1724939465072,0.3608,60479.0,60464.0,0.3608]
[1724939465373,0.3608,60486.0,60436.0,0.3608]
[1724939465374,0.3608,60465.0,60436.0,0.3608]
[1724939465567,0.3608,60444.0,60436.0,0.3608]
[1724939465766,0.3608,60437.0,60425.0,0.3608]
[1724939466070,0.3608,60437.0,60411.0,0.3608]
[1724939466071,0.3598,60426.0,60411.0,0.3608]
[1724939466275,0.39,60427.0,60403.0,0.3608]
[1724939466465,0.3608,60422.0,60409.0,0.3608]
[1724939466870,0.3608,60422.0,60403.0,0.443556]
[1724939466871,0.3608,60412.0,60403.0,0.3608]
[1724939467076,0.00024833,60414.0,60408.0,0.3608]
[1724939467277,0.00024833,60414.0,60413.0,0.3608]
[1724939467462,0.00024833,60414.0,60405.0,0.3608]
[1724939468275,0.00024833,60414.0,60404.0,0.3608]
[1724939468479,0.36104833,60414.0,60404.0,0.3608]
[1724939468976,0.5,60413.0,60403.0,0.028]
[1724939469278,0.3608,60407.0,60403.0,0.014]
[1724939469592,0.3518,60407.0,60403.0,0.014]
[1724939469875,0.3518,60407.0,60386.0,0.3608]
[1724939469876,0.082761,60400.0,60386.0,0.3608]
[1724939470062,0.3508,60401.0,60391.0,0.3608]
[1724939470261,0.5,60399.0,60386.0,0.3608]
[1724939470479,0.001,60414.0,60386.0,0.3608]
[1724939470480,0.3608,60398.0,60386.0,0.3608]
[1724939470869,0.5,60397.0,60386.0,0.00024833]
[1724939471069,0.3608,60390.0,60386.0,0.00024833]
[1724939471373,0.582765,60397.0,60386.0,0.00024833]
[1724939471579,0.5,60389.0,60386.0,0.00024833]
[1724939471970,0.5,60396.0,60387.0,0.082778]
[1724939472165,0.5,60397.0,60386.0,0.00024833]
[1724939472367,0.3608,60391.0,60386.0,0.00024833]
[1724939472569,0.7216,60391.0,60386.0,0.00024833]
[1724939472765,0.582775,60390.0,60386.0,0.00024833]
[1724939472970,0.582775,60390.0,60386.0,0.01024833]
[1724939473171,0.5,60390.0,60389.0,0.3608]
[1724939473370,0.001,60397.0,60389.0,0.3608]
[1724939473371,0.5,60395.0,60389.0,0.3608]
[1724939473573,0.001,60397.0,60394.0,0.3608]
[1724939473776,0.5,60408.0,60394.0,0.3378]
[1724939473984,0.5,60408.0,60407.0,0.3608]
[1724939474171,0.3608,60408.0,60394.0,0.3608]
[1724939474369,0.3608,60403.0,60394.0,0.3608]
[1724939474567,0.3608,60398.0,60385.0,0.3608]
[1724939474779,0.36104833,60398.0,60390.0,0.082773]
[1724939475077,0.5,60397.0,60392.0,0.3608]
[1724939475277,0.5,60397.0,60390.0,0.082773]
[1724939475581,0.5,60397.0,60385.0,0.36104833]
[1724939475776,0.082767,60396.0,60385.0,0.36104833]
[1724939475977,0.082767,60396.0,60394.0,0.001]
[1724939476178,0.5,60395.0,60394.0,0.001]
[1724939477578,0.011,60397.0,60394.0,0.001]
[1724939478075,0.011,60397.0,60396.0,0.3608]
[1724939478480,0.011,60397.0,60396.0,1.45752]
[1724939478685,0.011,60397.0,60396.0,0.3608]
[1724939478875,0.3718,60397.0,60394.0,0.001]
[1724939479077,0.011,60397.0,60394.0,0.001]
[1724939479279,0.011,60397.0,60395.0,0.443567]
[1724939479581,0.011,60397.0,60396.0,0.082766]
[1724939479774,0.00024833,60398.0,60397.0,0.082764]
[1724939479974,0.00024833,60398.0,60397.0,0.579484]
[1724939480183,0.00024833,60398.0,60397.0,0.082764]
[1724939480379,0.00024833,60398.0,60383.0,0.3608]
[1724939480591,0.00024833,60398.0,60392.0,0.082771]
[1724939480592,0.082766,60396.0,60392.0,0.082771]
[1724939480889,0.36104833,60398.0,60390.0,0.3608]
[1724939480890,0.00024833,60398.0,60390.0,0.3608]
[1724939481078,0.013,60397.0,60396.0,0.082766]
[1724939481582,0.013,60397.0,60396.0,0.579486]
[1724939481775,0.013,60397.0,60396.0,1.179486]
[1724939482184,0.5,60417.0,60397.0,0.49672]
[1724939482486,0.5,60417.0,60416.0,0.082738]
[1724939482784,0.5,60418.0,60416.0,0.082738]
[1724939482992,0.5,60418.0,60414.0,0.3608]
[1724939482993,0.3608,60424.0,60417.0,0.3608]
[1724939483191,0.3608,60424.0,60423.0,0.082728]
[1724939483375,0.00024833,60427.0,60423.0,0.3608]
[1724939483581,0.00024833,60427.0,60426.0,0.082725]
[1724939484092,0.00024833,60427.0,60417.0,0.3608]
[1724939484289,0.3608,60424.0,60416.0,0.001]
[1724939484583,0.3608,60419.0,60418.0,0.082736]
[1724939484987,0.3598,60419.0,60418.0,0.082736]
[1724939485187,0.3608,60420.0,60418.0,0.082736]
[1724939485990,0.5,60421.0,60418.0,0.9608]
[1724939486283,0.3608,60426.0,60418.0,0.3608]
[1724939486482,0.08274,60415.0,60414.0,0.00024833]
[1724939486678,0.3608,60419.0,60401.0,0.082758]
[1724939486679,0.3598,60418.0,60401.0,0.082758]
[1724939486884,0.5,60414.0,60399.0,0.3608]
[1724939487089,0.082753,60406.0,60394.0,0.3608]
[1724939487290,0.8608,60413.0,60399.0,0.3608]
[1724939487588,0.3257,60426.0,60414.0,0.001]
[1724939487886,0.08273,60422.0,60419.0,0.082734]
[1724939488278,0.082732,60421.0,60419.0,0.082734]
[1724939489385,0.3608,60424.0,60420.0,0.082733]
[1724939489784,0.3608,60424.0,60423.0,0.082729]
[1724939490090,0.00024833,60426.0,60425.0,0.082726]
[1724939490387,0.00024833,60426.0,60425.0,0.579206]
[1724939490690,0.00024833,60426.0,60425.0,1.179206]
[1724939490890,0.00024833,60426.0,60425.0,1.261932]
[1724939491088,0.5,60439.0,60425.0,1.261932]
[1724939491089,0.5,60439.0,60438.0,0.082708]
[1724939491384,0.3608,60442.0,60432.0,0.3608]
[1724939491595,0.3608,60449.0,60432.0,0.3608]
[1724939491596,0.5,60448.0,60441.0,0.082703]
[1724939491779,0.5,60448.0,60432.0,0.3608]
[1724939491780,0.89,60448.0,60432.0,0.3608]
[1724939491977,0.89,60448.0,60438.0,0.00024833]
[1724939492380,0.082705,60441.0,60438.0,0.00024833]
[1724939492984,0.3608,60440.0,60438.0,0.00024833]
[1724939493191,0.082707,60439.0,60438.0,0.00024833]
[1724939493393,0.082707,60439.0,60425.0,0.3618]
[1724939493394,0.087707,60439.0,60418.0,0.3608]
[1724939493585,0.3608,60435.0,60423.0,0.3608]
[1724939493897,0.082717,60432.0,60428.0,0.082721]
[1724939494188,0.081717,60432.0,60423.0,0.3608]
[1724939494387,0.3608,60435.0,60423.0,0.3608]
[1724939494693,0.3608,60435.0,60423.0,0.36104833]
[1724939494694,0.082714,60434.0,60423.0,0.36104833]
[1724939494886,0.36104833,60435.0,60423.0,0.36104833]
[1724939495082,0.082719,60430.0,60424.0,0.082727]
[1724939495287,0.44376233,60435.0,60429.0,0.082721]
[1724939495493,0.082715,60434.0,60429.0,0.082721]
[1724939495681,0.36104833,60435.0,60423.0,0.36104833]
[1724939495878,0.082727,60424.0,60423.0,0.00024833]
[1724939496081,0.3608,60425.0,60403.0,0.3608]
[1724939496292,0.082747,60410.0,60407.0,0.082751]
[1724939496494,0.3598,60411.0,60396.0,0.3608]
[1724939496996,0.50024833,60410.0,60402.0,0.3608]
[1724939497200,0.50024833,60410.0,60397.0,0.00024833]
[1724939497499,0.3608,60405.0,60403.0,0.001]
[1724939497693,0.3608,60405.0,60397.0,0.00024833]
[1724939497694,0.082763,60398.0,60397.0,0.00024833]